Workbook

Sheet Title
I5: GAZ-SYSTEM the system that connects
A17: Simplified tariff model for Transit Gas Pipeline System
A18: Consultation if fulfilment of Article 26 of TAR NC
A19: Tariff for year 2023
A21: August, 2021

Sheet Model
B5: Simplified Tariff Model for Transit Gas Pipeline System
B6: Please fill in the orange fields only. | XEB6: Kondratki | XED6: Mallnowe
B7: Capacity should be at least 1 kWh/h.
D16: Tariff year 2021 | H16: Tariff year 2023
B19: Allowed revenue (Projection) in PLN | C19: PLN | E19: 971348167.6 | I19: 757186891
B21: Entry/Exit split
B22: Entry | C22: % | E22: 0.514867581 | I22: 0.5
B24: Exit | C24: % | E24: =1-E22 -> 0.485132419 | I24: =1-$I$22 -> 0.5
M25: CWD SGT -km | Q25: GAZ-SYSTEM - km
B26: Forecast of capacity sales
B27: Kondratki Entry | C27: [kWh/h] | E27: 39946005.6 | I27: 13517000 | N27: Kondratki | O27: Mallnow WE | Q27: makro ze jeśli ktos wpisze o to z automatu wpisze 1 | T27: Kondratki | U27: Mallnow WE
B29: Mallnow Entry * | C29: [kWh/h] | E29: 0 | I29: 5782862 | M29: PWP | N29: 455.1625 | O29: - | T29: =I27 -> 13517000 | U29: =I29 -> 5782862
C30: [kWh/h]
B31: PWP Exit | C31: [kWh/h] | E31: 3452054.795 | I31: 5782862 | M31: Mallnow WY | N31: 683.9 | O31: - | S31: WAD | T31: =IF(OR($R$33=0,$R$35=0),0,SUMPRODUCT($R$33:$R$35,T$33:T$35)/SUM(($R$33:$R$35)*(T$33:T$35<>0))) -> 602.7112079 | U31: =IF(OR($R$33=0,$R$35=0),0,SUMPRODUCT($R$33:$R$35,U$33:U$35)/SUM(($R$33:$R$35)*(U$33:U$35<>0))) -> 270.9614173
C32: [kWh/h]
B33: Mallnow Exit | C33: [kWh/h] | E33: 36493950.81 | I33: 13517000 | M33: WAD | N33: =SUM(E31*N29,E33*N31)/E27 -> 664.1329577 | Q33: PWP | R33: =I31 -> 5782862 | S33: =SUMPRODUCT($T$29:$U$29,$T33:$U33)/SUM(($T$29:$U$29)*($T33:$U33<>0)) -> 370.3976384 | T33: =[1]Założenia!$N$49 -> 412.9385827 | U33: =[1]Założenia!$O$49 -> 270.9614173 | V33: =(U29*U33)/(U29*U33) -> 1
S34: =SUMPRODUCT($T$29:$U$29,$T34:$U34)/SUM(($T$29:$U$29)*($T34:$U34<>0)) -> 
B35: Reserve prices | Q35: Mallnow WY | R35: =I33 -> 13517000 | S35: =IFERROR(SUMPRODUCT($T$29:$U$29,$T35:$U35)/SUM(($T$29:$U$29)*($T35:$U35<>0)),0) -> 683.9 | T35: =[1]Założenia!$N$50 -> 683.9 | U35: 0
B36: Kondratki Entry | C36: [gr/kWh/h per h] | E36: 0.14292 | I36: =(I19*I22*(I27*T31/SUM(I27*T31,I29*U31))/I27)/10/8760*1000 -> 0.2681575286
B38: Mallnow Entry * | C38: =C36 -> [gr/kWh/h per h] | E38: 0.14292 | I38: =(IF(OR(I29=0,I29=""),0,I19*I22*(I29*U31/SUM(I27*T31,I29*U31))/I29))/10/8760*1000 -> 0.1205558202
B40: PWP Exit | C40: =C36 -> [gr/kWh/h per h] | E40: 0.04732 | I40: =(IF(I31=0,0,I19*I24*(I31*S33/SUM($I$31*$S$33,$I$33*$S$35))/I31))/10/8760*1000 -> 0.1405908514
B42: Mallnow Exit | C42: =C36 -> [gr/kWh/h per h] | E42: 0.14292 | I42: =(I19*I24*(I33*S35/SUM($I$31*$S$33,$I$33*$S$35))/I33)/10/8760*1000 -> 0.2595861132
L43: =I43=K43 -> TRUE
B47: * According to the tariff prepared by EuRoPol GAZ s.a. for 2021 and the reference price methodology approved by the President of ERO for 2020-2022, the forecasted allowed revenue was based only on the revenue from physical direction flow services (i.e. does not include revenue from reverse flow). This means that no separate transmission rate was calculated at the Entry Mallnow point. The same rate as at Exit Mallnow shall be used to settle transmission services at this point in 2021. Gas transmission simplified tariff model allows for estimation of reserve prices for firm yearly contracts only. We hereby inform that all data calculated above has been given for information only and it does not constitute an offer within the meaning of Article 66 and subsequent articles of Polish Civil Code. The above calculated reserve prices are net prices. Above prices shall be increased by the value-added tax (VAT), at the applicable level under the relevant tax regulations. Simplified tariff model can only be used for estimating reserve prices for standard product for an exemplary client. Due to variety of products including interruptible products and short-term products the applicable tariff may vary from calculated. Calculated reserve prices for tariff year 2023 are to be considered indicative ones. In particular, reserve prices were not subject to approval of the NRA, i.e. President of Energy Regulatory Office. All the inconsistencies between the model and Publication Document might arise from the fact that the reserve prices are rounded to the fifth decimal place.
